Cogmind - Beta 15 @@@ ROGUE MODE // 2025.05.19 @ 17:34:20 Player: Figgis Result: Destroyed by S-10 Pest with Light Assault Rifle Performance ------------- Evolutions (0) 0 Regions Visited (1) 200 Robots Destroyed (15) 75 Value Destroyed (252) 252 Prototype IDs (2) 40 Alien Tech Used (0) 0 Bonus (0) 0 TOTAL SCORE: 567 Bonus ------- None Cogmind --------- Core Integrity 0/250 Matter 272/300 Energy 250/250 System Corruption 1% Temperature Warm (125) Movement Walking (120) Location -10/Materials Parts ------- > --- POWER (1) -------- Ion Engine > --- PROPULSION (2) --- Aluminum Leg Aluminum Leg > --- UTILITY (2) ------ Small Storage Unit > --- WEAPON (2) ------- Medium Laser > --- INVENTORY (8) ---- Aluminum Leg Aluminum Leg Hacking Suite Peak State ------------ > --- POWER ------------ Ion Engine > --- PROPULSION ------- Aluminum Leg Aluminum Leg > --- UTILITY ---------- Small Storage Unit > --- WEAPON ----------- Medium Laser Assault Rifle > --- INVENTORY -------- Light Ion Engine Medium Laser [Rating: 6] Favorites ----------- Power Ion Engine Engine Ion Engine Propulsion Aluminum Leg Leg Aluminum Leg Utility Small Storage Unit Storage Small Storage Unit Weapon Assault Rifle Energy Gun Medium Laser Ballistic Gun Assault Rifle Build | -11 -10 ------- Run | Yrd Mat Slots Evolved . | . . Power . | . . Propulsion . | . . Utility . | . . Weapon . | . . Parts Attached 12 | 7 5 Power 3 | 1 2 Engine 3 | 1 2 Core . | . . Reactor . | . . Propulsion 4 | 2 2 Treads . | . . Leg 4 | 2 2 Wheel . | . . Hover . | . . Flight . | . . Utility 1 | 1 . Device . | . . Storage 1 | 1 . Processor . | . . Hackware . | . . Protection . | . . Artifact . | . . Weapon 4 | 3 1 Energy Gun 2 | 2 . Energy Cannon . | . . Ballistic Gun 2 | 1 1 Ballistic Cannon . | . . Launcher . | . . Special Weapon . | . . Impact Weapon . | . . Slashing Weapon . | . . Piercing Weapon . | . . Special Melee Weapon . | . . Unidentified Prototypes . | . . Parts Lost 7 | . 7 Power 2 | . 2 Propulsion 2 | . 2 Utility . | . . Weapon 3 | . 3 Highest Loss Streak 4 | . 4 To Critical Strikes 1 | . 1 Average Backups 3 | 2 3 Power . | 1 . Propulsion 1 | . 1 Utility . | . . Weapon 1 | . 1 Tool/Special . | . . Unused Backups 5 | 2 3 Power . | . . Propulsion 4 | 2 2 Utility 1 | . 1 Weapon . | . . Tool/Special . | . . Average Slot Usage (%) 81 | . 81 Engine 13 | . 13 Leg 25 | . 25 Storage 14 | . 14 Energy Gun 7 | . 7 Ballistic Gun 19 | . 19 Peak Build Rating 6 | 6 6 Average Rating 5 | 2 5 On Entrance 3 | . 6 Naked Turns . | . . Heaviest Build 14 | 14 14 Greatest Support 20 | 20 20 Greatest Overweight (x) 3 | . 3 Average Overweight (x) . | . . Largest Inventory Capacity 8 | 8 8 Average Capacity 7 | 5 8 Most Carried 7 | 5 7 Average Carried 3 | 3 3 Final Capacity 8 | 8 8 Final Carried 3 | 2 3 Class Distribution -------------------- 100% | Mutant Dominant Class ---------------- Mutant | -10/Materials Resources | -11 -10 ----------- Run | Yrd Mat Matter Collected 463 | 227 236 Remotely . | . . Salvage Created 330 | . 330 Parts 26 | . 26 Haulers Intercepted . | . . Recyclers Shooed 3 | . 3 Parts Field Recycled . | . . Retrieved Matter . | . . Parts Self-Destructed . | . . Prevented . | . . Kills | -11 -10 ------- Run | Yrd Mat Combat Hostiles Destroyed 14 | . 14 Guns 14 | . 14 Classes Destroyed 3 | . 3 Operator 1 | . 1 Swarmer 10 | . 10 Grunt 4 | . 4 Best Kill Streak 3 | . 3 Combat Bots Only 3 | . 3 Max Kills in Single Turn 2 | . 2 Gunslinging 1 | . 1 Exploded . | . . Melee . | . . Uniques/NPCs Destroyed . | . . Combat | -11 -10 -------- Run | Yrd Mat Hostile Shots Fired 144 | . 144 Missed 34 | . 34 Hits 110 | . 110 Projectile 110 | . 110 Critical Strikes 1 | . 1 Damage Taken 974 | . 974 Core 253 | . 253 Absorbed by Shields . | . . Core Remaining (%) 100 | 100 . Volleys Fired 63 | . 63 Largest 2 | . 2 Hottest 100 | . 100 Shots Fired 114 | . 114 Gun 114 | . 114 Cannon . | . . Launcher . | . . Special . | . . Kinetic 69 | . 69 Thermal 45 | . 45 Explosive . | . . Electromagnetic . | . . Robot Hit Streak 6 | . 6 Robot Miss Streak 5 | . 5 Penetration Max . | . . Secondary Targets 5 | . 5 Max Gunslinging Chain 1 | . 1 Shots Hit Robots 63 | . 63 Core Hits 25 | . 25 Critical Kills . | . . Critical Parts Destroyed . | . . Critical Strikes 3 | . 3 Burn 3 | . 3 Melee Attacks . | . . Impact . | . . Slashing . | . . Piercing . | . . Sneak Attacks . | . . Combat Hostiles . | . . Follow-up Attacks . | . . Damage Inflicted 707 | . 707 Guns 703 | . 703 Cannons . | . . Explosions . | . . Melee . | . . Ramming 4 | . 4 Kinetic 441 | . 441 Thermal 262 | . 262 Explosive . | . . Electromagnetic . | . . Impact . | . . Slashing . | . . Piercing . | . . Highest Corruption 1 | . 1 Average Corruption 1 | . 1 Corruption Purged . | . . Corruption Blocked . | . . Overload Shots . | . . Overflow Damage . | . . Projectiles . | . . Explosions . | . . Melee . | . . Knockbacks . | . . Impact . | . . Kinetic . | . . Secondary . | . . Self-Inflicted Damage . | . . Shots . | . . Rammed . | . . Targets Rammed 1 | . 1 Kicked 1 | . 1 Crushed . | . . Highest Temperature 294 | . 294 Average Temperature 79 | . 79 Received Heat Transfer 162 | . 162 Effects 2 | . 2 Interference 2 | . 2 Siege Activations . | . . Martial Activations . | . . Shielding Activations . | . . Robots Disrupted . | . . Combat Hostiles . | . . Robots Corrupted . | . . Combat Hostiles . | . . Parts Fried . | . . Impact Corruptions . | . . Robots Melted . | . . Combat Hostiles . | . . Parts Melted 1 | . 1 Heat Transferred 999 | . 999 Parts Sabotaged . | . . Parts Stolen . | . . Parts Stripped . | . . Power Chain Reactions . | . . Alert | -11 -10 ------- Run | Yrd Mat Maximum Alert Level . | . . Low Security (%) 100 | 100 100 Level 1 . | . . Level 2 . | . . Level 3 . | . . Level 4 . | . . Level 5 . | . . High Security . | . . Max Security . | . . Peak Influence 100 | . 100 Initial . | . . Average 41 | . 44 Influence Increases 401 | . 401 Destroy 0b10 Robot/C 280 | . 280 Destroy 0b10 Robot/NC 5 | . 5 Destroy Leader 50 | . 50 Successful Hack 5 | . 5 Destroy Structure 1 | . 1 Lose Combat Pursuer 60 | . 60 Influence Decreases 354 | . 354 Time Decay 284 | . 284 Lost Part 70 | . 70 Squads Dispatched 2 | . 2 Investigation 1 | . 1 Extermination . | . . Reinforcement 1 | . 1 Assault . | . . Garrison . | . . Intercept . | . . Searches Triggered . | . . Construction Impeded . | . . Haulers Reinforced . | . . Active Scanning Responses . | . . Cargo Convoy Interrupts . | . . Stealth | -11 -10 --------- Run | Yrd Mat Distress Signals 1 | . 1 Communications Jammed . | . . Distress Signals . | . . Times Spotted 27 | . 27 Peak Tracking Total 5 | . 5 Tactical Retreats 3 | . 3 Traps | -11 -10 ------- Run | Yrd Mat Traps Triggered 3 | . 3 Indirectly . | . . Trap Hack Attempts . | . . Triggered . | . . Disarmed . | . . Reprogrammed . | . . Reused . | . . Traps Extracted . | . . Installed . | . . Triggered . | . . Machines | -11 -10 ---------- Run | Yrd Mat Machines Disabled . | . . Max in Single Turn . | . . Machines Repaired . | . . Machines Dismantled . | . . Machines Sabotaged . | . . Overloaded Fab Kills . | . . Hacking | -11 -10 --------- Run | Yrd Mat Machines Accessed 3 | . 3 Terminals 3 | . 3 Fabricators . | . . Repair Stations . | . . Recycling Units . | . . Scanalyzers . | . . Garrison Access . | . . Total Hacks 5 | . 5 Successful 2 | . 2 Failed 3 | . 3 Catastrophic 1 | . 1 Database Lockouts . | . . Manual 3 | . 3 Terminals 5 | . 5 Fabricators . | . . Repair Stations . | . . Recycling Units . | . . Scanalyzers . | . . Garrison Access . | . . Terminal Hacks 2 | . 2 Prototype ID Bank 1 | . 1 Branch Access Points 1 | . 1 Fabricator Hacks . | . . Repair Station Hacks . | . . Recycling Unit Hacks . | . . Scanalyzer . | . . Garrison Access Hacks . | . . Unauthorized Hacks . | . . Terminals . | . . Fabricators . | . . Repair Stations . | . . Recycling Units . | . . Scanalyzers . | . . Garrison Access . | . . Data Cores Recovered . | . . Used . | . . Hacking Detections 3 | . 3 Full Trace Events . | . . Feedback Events . | . . Feedback Blocked . | . . Robot Schematics Acquired . | . . Robots Built . | . . Authchips . | . . Time . | . . Total Robot Build Rating . | . . Part Schematics Acquired . | . . Parts Built . | . . Authchips . | . . Time . | . . Total Part Build Rating . | . . Parts Repaired . | . . Time . | . . Parts Recycled . | . . Recycled Matter . | . . Retrieved Matter . | . . Retrieved Components . | . . Parts Scanalyzed . | . . Part Schematics Acquired . | . . Parts Damaged . | . . Bothacking | -11 -10 ------------ Run | Yrd Mat Used RIF Installer . | . . Robots Hacked . | . . Non-combat . | . . Combat . | . . Robot Hacks Applied . | . . Relay Couplers Released . | . . Fabnet Peak Effective % . | . . Robots Rewired . | . . Allies Hacked . | . . Hacks Repelled . | . . Allies | -11 -10 -------- Run | Yrd Mat Total Allies . | . . Largest Group . | . . Highest-Rated Group . | . . Highest-Rated Ally . | . . Total Orders . | . . Ally Attacks . | . . Total Damage . | . . Kills . | . . Allies Corrupted . | . . Allies Melted . | . . Intel | -11 -10 ------- Run | Yrd Mat Active Infowar (turns) . | . . Robot Analysis Total . | . . Derelict Logs Recovered . | . . Drone Launches . | . . Drone Recoveries . | . . Exploration | -11 -10 ------------- Run | Yrd Mat Turns Passed 792 | 44 748 Spaces Moved 498 | 46 452 Core 45 | 43 2 Treads . | . . Legs 453 | 3 450 Wheels . | . . Hover . | . . Flight . | . . Fastest Speed 50 | 50 120 Average Speed 114 | 54 120 Slowest Speed 200 | 120 200 Overloaded Moves . | . . Propulsion Burnouts . | . . Robots Hopped . | . . Potential Cave-ins . | . . Cave-ins Triggered . | . . Exploration Rate (%) 35 | 3 67 Regions Visited 1 Branch Regions . Pre-discovered Areas . | . . Known Exits Taken . | . . Unknown Exits Taken 1 | 1 . Scrap Searched . | . . Spaces Dug . | . . Terrain Destroyed . | . . Melee . | . . Projectile . | . . AOE . | . . Terrain Rammed . | . . Walls Destroyed . | . . Machines Disabled . | . . Actions | -11 -10 --------- Run | Yrd Mat Total 610 | 65 545 Wait 8 | 1 7 Move 497 | 45 452 Hop . | . . Pick Up 20 | 10 10 Fast Attach . | . . Attach 15 | 6 9 Detach . | . . Swap 4 | 1 3 Drop 2 | 2 . Fire 63 | . 63 Melee . | . . Ram . | . . Kick 1 | . 1 Crush . | . . Escape Stasis . | . . Rewire . | . . Trap . | . . Miscellaneous . | . . Route ------- -11/Scrapyard -10/Materials (discovered 3 exits: [*Mat] / Min x2) History --------- Turn | Location | Event 30 | -11/Scrapyard | Discovered new exit (range 15) 45 | -11/Scrapyard | Entered Materials 205 | -10/Materials | Discovered new exit (range 4) 324 | -10/Materials | Build established: Mutant 684 | -10/Materials | Core integrity fell below 50% 749 | -10/Materials | Lost 4 parts (1p1n2w) 763 | -10/Materials | Identified exit to Mines 770 | -10/Materials | Core integrity fell below 20% 793 | -10/Materials | Destroyed by S-10 Pest with Light Assault Rifle Last Messages --------------- 00718_ Ion Engine destroyed. 00727_ K-01 Serf collects debris. 00731_ Acquired Aluminum Leg. 00734_ K-01 Serf collects debris. 00738_ S-10 Pest suffers critical hit (Burn). 00739_ K-01 Serf collects debris. 00749_ Acquired 37 matter. 00752_ Acquired Ion Engine. 00752_ K-01 Serf collects debris. 00763_ Connecting with Terminal... >>Access(Branch) Found 2 branch access points: (14,13) Mines (62,66) Mines Map updated. 00773_ S-10 Pest suffers critical hit (Burn). 00773_ S-10 Pest destroyed. 00777_ Critical hit (Destroy). 00777_ Med. Laser destroyed. 00788_ S-10 Pest suffers critical hit (Burn). Map ----- +----------------------------------------------------+ | ??????????# #????????????????# """^ """ #???? | | ??????????# #????????????????# """ """ #???? | | ??????????# +????????????????# #???? | | ??????????# #????????????????# #???? | | ??????????# #????????????????# """ #???? | | ??????????# #???????????##???# """^ #???? | | ???###??### #??????? ?? #???# """ " " #???? | | ???# # #???#? """ #???# "R" | | ???# # #???# "Y" ##### """ | | ???# +% #???# + | | ???# """ # #???# ###### | | ???# """ # #???# """ #########+### | | ???? "?" # #???# """ ## ! ## | | ???????#+## #???? """ ## #? | | ???????# #?????? ??# """ """ #?? """ ? | | ???????# #########+##### """ """ #????""???? | | ######?# ^ + """ """ #?????????? | | ## ^ ################?????????? | | """ + ! [[ " ######????????????????????????? | | """ # [[ T #???######????????????????????? | | """ # [[ " ##### #????????????????????? | | ?# ######???????????????? | | """ ?# + !????????????? | | """??+ ##+#####+###### ###### !! ?????????? | | """??# # ##s###########????????????? | | ? ???# # # @s "T" #????????????? | | ?""???#### # !!! #????????????? | | ?????????# """"" # != #????????????? | | ?????????# """"""""" # != #????????????? | | ?????????# """ """ # #????????????? | | ?????????############################????????????? | | | | | | | | | | | | | | | | | | | | | | | | | | | | | | | | | | | | | | | +----------------------------------------------------+ Best States ------------- Heat Dissipation 25 Energy Generation 10 Energy Capacity 250 Matter Stores 300 Matter Capacity 300 Sight Range 16 Terrain Scan Density 10 Evasion (%) 55 Item Schematics ----------------- None Robot Schematics ------------------ None Fabricated ------------ Nothing Repaired ---------- Nothing Alien Tech Used ----------------- None Achievements -------------- None Challenges ------------ None Game ------ Seed CloakTerrorModule Manual? 0 Play Time 00:05:53 Cumulative 133.0 hours Start 2025.05.19 @ 17:28:28 End 2025.05.19 @ 17:34:20 Sessions 1 Manual Loads 0 Difficulty Rogue Special Mode None Game No. 200 Rogue 197 Adventurer 3 Explorer 0 Win Type - Total 0 Types 0/0/0/0/0/0/0/0/0/0 Lore% 32 Gallery% 52 Achievement% 42 Wizard Run 0 Options --------- Layout 0 ASCII 0 Keyboard 0 Movement Mouse Keybinds 0 Fullscreen 2 Font 18/SmallcapsGlow Map View 76x50 Zoom Use 0% Tactical HUD 1 Map Filters NONE Filters NONE Steam 1 RUN: 776de9ed-19e3-441e-9c4f-347fb414b7a6